bitfinex/quotes_ETHUSD_20250319
["timestamp","ask_amount","ask_price","bid_price","bid_amount"]
[1742399112927,16.852,2051.6,2051.5,7.87448]
[1742399113221,16.852,2051.6,2051.5,8.64748]
[1742399113397,0.4952,2051.7,2051.6,7.87424]
[1742399113613,16.852,2052.3,2052.2,4.87281]
[1742399113928,16.852,2052.3,2052.2,7.87281]
[1742399114388,16.852,2052.9,2052.3,7.87257]
[1742399114593,16.852,2052.9,2052.6,4.87174]
[1742399114938,16.852,2052.9,2052.5,3.0]
[1742399115092,4.87143,2052.8,2052.5,3.0]
[1742399115488,28.3942831,2052.9,2052.5,3.0]
[1742399115699,33.2655631,2052.9,2052.5,3.0]
[1742399116322,4.87147,2052.8,2052.5,3.0]
[1742399116556,4.87224,2052.5,2052.2,3.0]
[1742399116821,4.87261,2052.3,2051.9,0.7759]
[1742399117023,9.74542,2052.3,2051.9,0.7759]
[1742399117211,4.87261,2052.3,2051.9,4.87346]
[1742399117408,1.01194064,2052.5,2051.7,3.8056]
[1742399117612,34.6249931,2052.9,2052.3,4.87247]
[1742399117787,4.87167,2052.7,2052.3,4.87253]
[1742399117990,2.39364567,2052.8,2052.5,3.0]
[1742399118628,2.39364567,2052.8,2052.4,3.0]
[1742399118825,8.35219021,2052.7,2052.2,8.69049]
[1742399119125,13.22393021,2052.7,2052.2,8.69049]
[1742399119293,13.22394021,2052.7,2052.2,8.69049]
[1742399119494,8.35219021,2052.7,2052.2,8.69034]
[1742399119694,8.35219021,2052.7,2052.4,3.0]
[1742399119910,0.83521902,2052.6,2052.4,3.0]
[1742399120233,0.83521902,2052.6,2052.2,3.8177]
[1742399120418,5.70718902,2052.6,2052.2,8.69049]
[1742399120624,5.70724902,2052.6,2052.2,8.69045]
[1742399120844,5.70724902,2052.6,2052.2,3.0]
[1742399120845,10.57933902,2052.6,2052.2,3.0]
[1742399121138,4.87211,2052.5,2052.2,3.0]
[1742399121339,11.93424102,2052.5,2052.2,3.0]
[1742399121509,1.85176457,2052.5,2052.2,3.0]
[1742399121709,0.83521902,2052.6,2052.3,4.87256]
[1742399122039,3.48054021,2052.7,2052.3,4.87241]
[1742399122336,0.7526,2052.8,2052.5,3.0]
[1742399122506,4.87163,2052.7,2052.5,3.0]
[1742399123032,9.74449,2052.5,2052.1,7.87304]
[1742399123237,4.87224,2052.5,2052.1,7.87304]
[1742399123641,4.87221,2052.5,2052.1,7.87304]
[1742399123935,0.93299765,2052.4,2052.1,7.87304]
[1742399124814,0.93299765,2052.4,2052.1,4.87303]
[1742399125538,5.80534765,2052.4,2052.0,8.67965]
[1742399125723,4.45776645,2052.2,2051.9,4.87343]
[1742399125923,16.846,2052.2,2052.1,4.87305]
[1742399126313,16.846,2052.2,2052.1,8.8847286]
[1742399127207,16.846,2052.2,2052.1,7.87305]
[1742399127631,16.846,2052.2,2051.2,4.87508]
[1742399127827,26.59183,2052.2,2051.8,4.87365]
[1742399128018,21.71883,2052.2,2051.7,4.87381]
[1742399128220,5.64318,2052.1,2051.8,3.0]
[1742399128414,5.64318,2052.1,2051.6,5.411]
[1742399128415,4.87356,2051.9,2051.6,5.411]
[1742399128614,4.8739,2051.8,2051.4,4.87465]
[1742399128817,4.8739,2051.8,2051.3,5.65105]
[1742399128818,9.33129645,2051.9,2051.3,5.65093]
[1742399129104,4.87386,2051.8,2051.4,4.87465]
[1742399129505,4.87353,2051.9,2051.5,7.87446]
[1742399129840,4.87387,2051.8,2051.4,4.8746]
[1742399130141,4.87387,2051.8,2051.5,3.0]
[1742399130307,5.65853,2051.7,2051.4,3.0]
[1742399130505,4.87387,2051.8,2051.4,7.87452]
[1742399130925,11.94125619,2051.9,2051.4,3.0]
[1742399131240,4.87411,2051.7,2051.3,4.87475]
[1742399131405,4.87435,2051.6,2051.2,10.29418]
[1742399131809,4.87435,2051.6,2050.7,0.55]
[1742399131810,9.33283645,2051.3,2050.8,4.87598]
[1742399132114,16.847,2051.3,2050.6,0.36538733]
[1742399132321,26.59714,2051.3,2050.8,4.87609]
[1742399132512,4.8752,2051.2,2050.9,3.0]
[1742399132706,4.8752,2051.2,2050.6,4.8764]
[1742399133043,4.87594,2050.9,2050.5,4.87676]
[1742399133211,4.87624,2050.8,2050.3,4.87721]
[1742399133416,4.87638,2050.7,2050.4,3.0]
[1742399133731,5.65803,2050.6,2050.1,4.87761]
[1742399133911,10.53481,2050.6,2050.1,4.8776]
[1742399134110,5.65807,2050.6,2050.1,4.8776]
[1742399134305,21.72604,2050.5,2050.0,5.65972]
[1742399134513,21.72604,2050.5,2050.1,4.87779]
[1742399134719,4.87722,2050.4,2049.9,4.87822]
[1742399135011,4.8772,2050.4,2050.0,4.87803]
[1742399135214,4.8772,2050.4,2049.9,4.87825]
[1742399135436,4.87776,2050.2,2049.8,3.0]
[1742399135647,9.75552,2050.2,2049.8,7.8785]
[1742399135866,4.87776,2050.2,2049.8,3.0]
[1742399136069,4.87776,2050.2,2049.5,0.8303]
[1742399136070,4.87814,2050.0,2049.5,5.70934]
[1742399136231,4.87839,2049.9,2049.5,4.87904]
[1742399136938,0.8016,2050.1,2049.4,4.87926]
[1742399137267,4.8784,2049.9,2049.5,4.87913]
[1742399137464,5.40412665,2050.0,2049.6,4.87899]
[1742399137630,5.67941,2050.1,2049.7,4.87874]
[1742399137969,5.67943,2050.1,2049.7,4.87863]
[1742399138273,5.67943,2050.1,2049.7,4.87855]
[1742399138274,5.67941,2050.1,2049.7,4.87855]
[1742399138566,0.8016,2050.1,2049.8,4.87852]
[1742399139086,5.67953,2050.1,2049.7,4.87875]
[1742399139267,5.67953,2050.1,2049.6,4.87895]
[1742399139455,4.87805,2050.0,2049.6,4.87895]
[1742399139635,7.276042,2050.1,2049.5,7.87906]
[1742399139831,7.276042,2050.1,2049.7,3.0]
[1742399140032,0.8016,2050.1,2049.9,4.87814]
[1742399140339,0.8016,2050.1,2049.7,4.8787]
[1742399140547,5.67951,2050.1,2049.7,9.7573]
[1742399140863,11.08233,2050.4,2050.0,4.87792]
[1742399141039,6.2051,2050.4,2049.8,4.87851]
[1742399141239,9.33580645,2050.1,2049.5,8.384]
[1742399141441,4.87805,2050.0,2049.7,3.0]
[1742399141860,4.87762,2050.2,2049.7,7.87865]
[1742399142060,13.34984643,2050.3,2049.9,4.87826]
[1742399142381,13.34984643,2050.3,2049.9,9.75634]
[1742399142382,5.379,2050.3,2049.9,9.75634]
[1742399142564,5.379,2050.3,2050.0,7.87788]
[1742399142765,5.69824,2050.4,2050.0,7.87788]
[1742399143287,4.87749,2050.3,2049.9,3.0]
[1742399143457,5.447559,2050.2,2049.9,3.0]
[1742399143844,4.87749,2050.3,2049.9,3.0]
[1742399144043,21.72599,2050.5,2050.1,4.8777]
[1742399144271,16.849,2050.5,2050.3,4.87724]
[1742399144974,16.849,2050.5,2050.3,4.8772]
[1742399145339,21.72586,2050.5,2050.2,4.87755]
[1742399145645,4.87747,2050.3,2050.0,3.0]
[1742399145962,4.87721,2050.4,2050.0,7.87801]
[1742399146273,16.849,2050.5,2050.1,4.87778]
[1742399146467,16.849,2050.5,2050.3,4.87724]
[1742399147049,16.849,2050.5,2050.4,4.87709]
[1742399147539,16.849,2050.5,2050.4,7.87709]
[1742399147945,16.849,2050.5,2050.4,3.0]
[1742399148146,19.82807,2050.5,2050.1,4.87777]
[1742399148347,17.6555,2050.5,2050.3,4.87726]
[1742399148572,16.849,2050.5,2050.3,4.87726]
[1742399148765,16.849,2050.5,2050.3,9.75448]
[1742399148970,16.849,2050.5,2050.3,4.87722]
[1742399149375,16.849,2050.5,2050.4,4.87709]
[1742399149686,16.849,2050.5,2050.3,4.87722]
[1742399149990,16.849,2050.5,2050.4,4.87709]
[1742399150687,16.849,2050.5,2050.3,4.87722]
[1742399151276,16.849,2050.5,2050.4,4.87709]
[1742399151482,16.86,2051.1,2050.6,3.0]
[1742399151780,21.73551,2051.1,2050.7,4.87624]
[1742399151979,16.86,2051.1,2050.6,3.0]
[1742399152197,4.87599,2050.9,2050.6,3.0]
[1742399152358,5.66036,2050.8,2050.5,4.87679]
[1742399152549,5.66036,2050.8,2050.4,3.0]
[1742399152550,4.87643,2050.7,2050.4,3.0]
[1742399153089,4.87643,2050.7,2050.3,4.87722]
[1742399153384,5.442823,2050.6,2050.3,7.87732]
[1742399153791,5.442823,2050.6,2050.2,10.24755]
[1742399153792,5.442823,2050.6,2050.2,4.87751]
[1742399153967,9.90058945,2050.6,2050.2,3.0]
[1742399154290,9.90058945,2050.6,2050.2,7.87747]
[1742399154291,10.319653,2050.6,2050.2,7.87747]
[1742399154496,6.4462353,2050.5,2050.2,7.87747]
[1742399154794,6.4462353,2050.5,2050.2,3.0]
[1742399155098,1.5693653,2050.5,2050.2,4.87739]
[1742399155295,6.4463253,2050.5,2050.2,3.0]
[1742399155869,6.4463253,2050.5,2050.2,7.8775]
[1742399156084,1.5693653,2050.5,2050.2,7.8775]
[1742399156800,6.4463053,2050.5,2050.2,3.0]
[1742399156999,5.64336,2050.3,2050.0,0.99662904]
[1742399157147,5.64336,2050.3,2049.9,7.87816]
[1742399157354,5.64336,2050.3,2050.0,3.0]
[1742399158001,4.87772,2050.2,2049.8,4.87851]
[1742399158287,4.87783,2050.1,2049.8,4.87851]
[1742399158450,5.929985,2050.1,2049.8,4.87851]
[1742399158652,5.929985,2050.1,2049.7,4.87868]
[1742399158874,4.87812,2050.0,2049.7,3.0]
[1742399159085,5.930015,2050.1,2049.7,12.75734]
[1742399159260,4.87786,2050.1,2049.8,4.87848]
[1742399159461,4.87763,2050.2,2049.8,4.87843]
[1742399160285,10.98633,2050.3,2049.7,3.0]
[1742399160286,0.766,2050.3,2049.7,3.0]
[1742399160454,0.766,2050.3,2050.0,4.87795]
[1742399160651,5.64342,2050.3,2049.9,4.87824]
[1742399160853,5.64342,2050.3,2049.9,9.75637]
[1742399161048,4.87772,2050.2,2049.7,7.87854]
[1742399161254,4.87786,2050.1,2049.7,7.87869]
[1742399161481,4.87816,2050.0,2049.7,3.0]
[1742399162291,9.75638,2050.0,2049.7,3.0]
[1742399162583,4.87838,2049.9,2049.6,3.0]
[1742399162764,4.87812,2050.0,2049.6,7.87896]
[1742399162963,4.87812,2050.0,2049.7,4.87876]
[1742399163163,4.87812,2050.0,2049.6,7.87896]
[1742399163784,9.75635,2050.0,2049.6,7.87896]
[1742399164178,5.853755,2050.0,2049.6,12.75778]
[1742399164361,5.853755,2050.0,2049.6,7.87882]
[1742399164686,4.87887,2049.7,2049.3,5.70267167]
[1742399164890,4.87887,2049.7,2049.3,4.90177167]
[1742399165091,4.87913,2049.6,2049.3,0.02214167]
[1742399165259,4.87913,2049.6,2049.3,3.02214167]
[1742399165459,4.87947,2049.4,2049.3,0.02214167]
[1742399165962,5.66387,2049.4,2049.3,0.02214167]
[1742399166690,5.66387,2049.4,2049.3,1.67e-06]
[1742399167063,6.21387,2049.4,2049.3,1.67e-06]
[1742399167268,4.88173,2048.5,2048.1,0.99649101]
[1742399167473,4.88173,2048.5,2048.0,5.311]
[1742399167474,9.82798945,2048.4,2048.0,4.8827]
[1742399167682,4.88222,2048.3,2047.9,4.88298]
[1742399167890,0.488173,2048.4,2048.2,3.0]
[1742399168061,4.88209,2048.3,2048.2,3.0]
[1742399168393,4.88209,2048.3,2047.8,4.88328]
[1742399168394,2.2234263,2048.3,2047.8,4.88328]
[1742399168689,2.2234263,2048.3,2047.9,4.88286]
[1742399168889,16.864,2048.5,2048.3,4.88209]
[1742399169064,16.864,2048.5,2048.4,3.0]
[1742399169501,16.864,2048.5,2048.4,7.88185]
[1742399169824,16.864,2048.5,2048.4,3.0]
[1742399170370,16.864,2048.5,2048.4,7.88185]
[1742399170797,16.864,2048.5,2048.4,10.475631]
[1742399171000,16.864,2048.5,2048.4,8.64925]
[1742399171207,16.864,2048.5,2048.4,3.0]
[1742399171518,16.864,2048.5,2048.4,7.88185]
[1742399172074,16.864,2048.5,2048.4,8.43185]
[1742399173180,16.864,2048.5,2048.4,7.88185]
[1742399173374,16.864,2048.5,2048.4,3.0]
[1742399173609,24.18682,2048.5,2048.4,3.0]
[1742399173775,4.88198,2048.4,2048.0,0.97046536]
[1742399173971,4.8822,2048.3,2047.8,4.88316]
[1742399174175,4.88214,2048.3,2047.8,4.88315]
[1742399174400,4.88244,2048.2,2047.8,4.88315]
[1742399174607,5.859038,2048.1,2047.9,3.0]
[1742399174803,4.88291,2048.0,2047.6,4.88372]
[1742399174987,0.976458,2048.1,2047.7,4.88341]
[1742399175172,0.7548,2048.3,2048.0,4.88269]
[1742399175372,24.18682,2048.5,2048.1,7.88248]
[1742399175602,19.3052,2048.5,2048.3,3.0]
[1742399175881,24.18698,2048.5,2048.1,4.88251]
[1742399176198,24.18698,2048.5,2048.2,3.0]
[1742399176199,29.06875,2048.5,2048.2,3.0]
[1742399176382,2.906875,2048.4,2048.2,3.0]
[1742399177104,4.88209,2048.3,2048.2,3.0]
[1742399177616,7.788755,2048.4,2048.2,3.0]
[1742399177819,2.906875,2048.4,2048.2,3.0]
[1742399178020,7.788755,2048.4,2048.2,3.0]
[1742399178488,3.1975585,2048.3,2048.2,3.0]
[1742399179806,8.0796485,2048.3,2048.2,3.0]
[1742399180004,4.88249,2048.2,2047.7,5.6702]
[1742399180238,4.88267,2048.1,2047.7,5.67012]
[1742399180464,7.3905185,2048.1,2047.6,4.88376]
[1742399180643,4.88298,2048.0,2047.5,5.69787]
[1742399180791,4.88343,2047.8,2047.4,4.88419]
[1742399180997,11.84819495,2048.1,2047.6,4.88363]
[1742399181196,11.84819495,2048.1,2047.7,3.0]
[1742399181197,1.18481949,2048.0,2047.7,3.0]
[1742399181394,1.18481949,2048.0,2047.5,3.0]
[1742399181599,2.5078485,2048.1,2047.9,3.0]
[1742399181798,8.4785585,2048.3,2048.0,4.88281]
[1742399181799,13.3606485,2048.3,2048.0,4.88281]
[1742399182009,0.7722,2048.4,2048.0,4.88281]
[1742399182314,5.65407,2048.4,2048.1,3.0]
[1742399182507,22.151,2048.5,2048.3,4.88207]
[1742399182710,22.151,2048.5,2048.3,4.88191]
[1742399183196,16.864,2048.5,2048.3,4.88191]
[1742399183633,16.864,2048.5,2048.3,3.0]
[1742399184437,4.88195,2048.4,2048.0,7.88273]
[1742399184596,7.50267164,2048.3,2047.9,0.8314]
[1742399184944,4.88283,2048.0,2047.6,4.88374]
[1742399185093,18.04756809,2048.3,2047.9,3.0]
[1742399185298,4.88267,2048.1,2047.6,4.88376]
[1742399185506,4.88306,2047.9,2047.5,0.7771]
[1742399185712,4.88306,2047.9,2047.4,4.88424]
[1742399185713,4.88338,2047.8,2047.4,4.88408]
[1742399185943,16.877,2047.7,2047.3,4.88445]
[1742399186258,21.76055,2047.7,2047.3,4.8843]
[1742399186419,16.877,2047.7,2047.4,3.0]
[1742399186628,16.877,2047.7,2047.5,4.88388]
[1742399186844,19.662298,2047.7,2047.5,4.88388]
[1742399187022,19.662298,2047.7,2047.4,4.88417]
[1742399187227,24.545978,2047.7,2047.3,7.88445]
[1742399187458,1.9662298,2047.6,2047.3,7.88445]
[1742399187746,1.9662298,2047.6,2047.4,4.88422]
[1742399187949,21.76087,2048.4,2047.6,0.8146]
[1742399188154,21.76087,2048.4,2048.0,3.0]
[1742399188451,26.64287,2048.4,2048.0,7.88268]
[1742399188655,16.879,2048.4,2048.0,3.0]
[1742399188954,16.879,2048.4,2048.3,3.0]
[1742399189151,21.76085,2048.4,2048.3,3.0]
[1742399189356,21.76085,2048.4,2048.0,4.8828]
[1742399189357,4.88217,2048.3,2048.0,3.0]
[1742399189555,21.76092,2048.4,2048.0,7.88277]
[1742399189727,8.11933864,2048.3,2048.0,7.88277]
[1742399190053,3.23722864,2048.3,2048.0,7.88277]
[1742399190213,4.88244,2048.2,2047.7,4.88346]
[1742399190410,12.57711509,2048.3,2047.8,3.0]
[1742399190630,2.94561151,2048.2,2048.0,4.88279]
[1742399190855,4.45776645,2048.1,2047.6,0.8146]
[1742399191150,16.879,2048.4,2047.6,0.8146]
[1742399191151,16.879,2048.4,2047.8,0.55]
[1742399191442,16.879,2048.4,2048.1,4.88241]
[1742399191766,16.879,2048.4,2048.2,3.0]
[1742399191945,18.53000664,2048.4,2048.2,3.0]
[1742399192156,4.88226,2048.3,2047.9,4.883]
[1742399192358,4.88226,2048.3,2048.0,3.0]
[1742399192662,18.53000664,2048.4,2048.1,4.88247]
[1742399192956,3.40122331,2048.3,2048.1,4.88247]
[1742399193343,18.53000664,2048.4,2048.3,4.88209]
[1742399193539,18.53000664,2048.4,2048.2,4.88233]
[1742399193856,18.53000664,2048.4,2048.1,4.88257]
[1742399194055,18.53000664,2048.4,2048.1,4.88241]
[1742399194294,18.53000664,2048.4,2048.2,4.88216]
[1742399194558,16.879,2048.4,2048.2,4.88233]
[1742399194728,16.879,2048.4,2048.1,4.88245]
[1742399194929,16.879,2048.4,2048.1,4.88233]
[1742399195261,16.879,2048.4,2048.2,4.8823]
[1742399195413,16.879,2048.4,2048.3,4.88209]
[1742399196526,18.5669,2048.4,2047.8,3.8091]
[1742399196725,0.8113,2048.3,2047.8,0.8091]
[1742399196923,18.5669,2048.4,2047.9,4.88303]
[1742399197130,16.879,2048.4,2048.3,7.88209]
[1742399197547,16.879,2048.4,2048.3,3.0]
[1742399198128,16.879,2048.4,2048.2,4.8822]
[1742399198550,16.879,2048.4,2048.1,7.88251]
[1742399198750,19.543203,2048.4,2048.1,12.76496]
[1742399199254,19.543203,2048.4,2048.1,7.88245]
[1742399200131,19.543203,2048.4,2048.3,4.88209]
[1742399200338,19.543203,2048.4,2048.2,4.8822]
[1742399200339,16.879,2048.4,2048.2,4.8822]
[1742399200532,16.879,2048.4,2048.3,4.88209]
[1742399200763,16.879,2048.4,2048.3,7.88209]
[1742399201128,16.879,2048.4,2048.3,3.0]
[1742399202362,16.879,2048.4,2048.3,7.88209]
[1742399202858,16.879,2048.4,2048.3,3.0]
[1742399203072,16.879,2048.4,2048.3,7.88209]
[1742399203355,16.879,2048.4,2048.3,3.0]
[1742399203922,23.936908,2048.4,2048.0,0.45075894]
[1742399204269,5.22476645,2048.3,2048.1,3.0]
[1742399204781,4.88249,2048.2,2047.8,4.88328]
[1742399204965,0.767,2048.3,2047.7,5.85813845]
[1742399205174,0.767,2048.3,2048.1,4.88246]
[1742399205370,0.767,2048.3,2048.0,4.88281]
[1742399205975,0.767,2048.3,2048.2,4.88233]
[1742399206278,19.055038,2048.4,2048.1,4.88244]
[1742399206492,19.055038,2048.4,2048.3,7.88209]
[1742399206493,16.879,2048.4,2048.3,7.88209]
[1742399206843,17.6327,2049.1,2048.8,4.88088]
[1742399207048,0.7537,2049.1,2048.9,4.88054]
[1742399207295,0.7537,2049.1,2048.8,7.88085]
[1742399207647,0.7537,2049.1,2048.8,12.76156]
[1742399207875,0.7537,2049.1,2048.9,4.88066]
[1742399208074,3.536974,2049.1,2048.8,3.0]
[1742399208277,9.33819645,2049.0,2048.7,3.45114978]
[1742399208680,9.33819645,2049.0,2048.7,3.0]
[1742399209082,3.536974,2049.1,2048.9,4.88064]
[1742399209256,3.536974,2049.1,2048.8,4.88085]
[1742399209463,3.536974,2049.1,2048.8,4.88079]
[1742399209781,16.879,2049.2,2049.0,4.88042]
[1742399209985,16.879,2049.2,2049.0,4.88027]
[1742399210689,16.879,2049.2,2048.9,4.88066]
[1742399210869,16.879,2049.2,2048.8,5.66434]
[1742399211188,4.88019,2049.1,2048.7,4.88114]
[1742399211369,2.62169565,2049.0,2048.7,4.88114]
[1742399211677,12.7482121,2049.0,2048.5,3.0]
[1742399211892,9.33885645,2048.8,2048.3,4.88195]
[1742399212093,4.88132,2048.7,2048.3,4.88195]
[1742399212279,9.33866645,2048.8,2048.4,4.88175]
[1742399212482,1.1855949,2048.8,2048.5,4.88151]
[1742399212995,1.1855949,2048.8,2048.5,4.88149]
[1742399213499,1.1855949,2048.8,2048.3,4.88195]
[1742399213500,4.88129,2048.7,2048.3,4.88195]
[1742399213699,4.88129,2048.7,2048.4,3.0]
[1742399214012,10.10092645,2048.6,2048.3,3.0]
[1742399214285,11.64148859,2048.6,2048.3,3.0]
[1742399214584,21.7577,2048.5,2048.2,3.0]
[1742399214774,21.75763,2048.5,2048.1,4.88245]
[1742399214955,16.876,2048.5,2048.1,4.88241]
[1742399215158,24.60938686,2048.5,2048.1,4.88241]
[1742399215461,4.88187,2048.4,2048.1,3.0]
[1742399215660,4.88213,2048.3,2048.1,3.0]
[1742399215984,4.88213,2048.3,2047.8,5.65887]
[1742399215985,0.76,2048.2,2047.8,4.88313]
[1742399216181,5.64241,2048.2,2047.9,3.0]
[1742399216390,7.14063865,2048.2,2047.9,3.0]
[1742399216683,12.02314865,2048.2,2047.8,4.88313]
[1742399216858,7.14063865,2048.2,2047.8,4.8831]
[1742399217063,4.88187,2048.4,2047.7,0.99977991]
[1742399217259,22.53829,2048.5,2048.0,4.88257]
[1742399217468,17.6566,2048.5,2048.1,4.88244]
[1742399218787,4.88198,2048.4,2048.0,5.68198]
[1742399219152,22.53823,2048.5,2048.0,4.88269]
[1742399219357,25.92128586,2048.5,2048.2,4.88233]
[1742399219759,16.876,2048.5,2048.3,4.88193]
[1742399220258,16.876,2048.5,2048.3,5.65633]
[1742399220459,16.876,2048.5,2048.4,7.88185]
[1742399221488,16.876,2048.5,2048.4,8.33217228]
[1742399221700,16.876,2048.5,2048.4,13.33993873]
[1742399221992,17.675,2049.1,2048.9,4.88055]
[1742399222291,17.675,2049.1,2048.9,9.76103]
[1742399222505,16.878,2049.1,2048.9,4.88048]
[1742399222658,16.878,2049.1,2048.8,12.76159]
[1742399222852,16.878,2049.1,2048.9,4.88063]
[1742399223702,16.878,2049.1,2049.0,4.88042]
[1742399223901,16.878,2049.1,2048.9,4.88049]
[1742399224704,16.878,2049.1,2049.0,7.88042]
[1742399224876,16.878,2049.1,2049.0,3.0]
[1742399225076,16.878,2049.1,2048.9,3.0]
[1742399225281,16.878,2049.1,2049.0,4.88042]
[1742399226512,16.878,2049.1,2048.9,7.88059]
[1742399226670,16.878,2049.1,2048.9,3.0]
[1742399226873,16.878,2049.1,2049.0,4.88042]
[1742399227470,16.875,2049.7,2049.6,4.879]
[1742399227987,16.875,2049.7,2049.5,4.87922]
[1742399228200,16.875,2049.7,2049.4,7.87931]
[1742399229191,16.875,2049.7,2049.4,7.87942]
[1742399229400,16.875,2049.7,2049.4,7.87932]
[1742399229603,23.01756781,2049.7,2049.4,3.0]
[1742399229989,18.13880781,2049.7,2049.4,3.0]
[1742399230185,16.875,2049.7,2049.6,4.879]
[1742399230385,16.875,2049.7,2049.6,7.879]
[1742399230713,16.875,2049.7,2049.6,8.6512]
[1742399231292,16.875,2049.7,2049.6,9.2012]
[1742399232095,16.875,2049.7,2049.6,13.65896645]
[1742399232301,16.875,2049.7,2049.6,12.06574165]
[1742399232501,16.875,2049.7,2049.6,8.6512]
[1742399234033,16.875,2049.7,2049.6,7.879]
[1742399234185,16.875,2049.7,2049.5,10.107]
[1742399234186,16.875,2049.7,2049.4,4.87944]
[1742399234386,16.875,2049.7,2049.4,4.87947]
[1742399234618,16.960995,2049.7,2049.6,4.879]
[1742399234933,19.1449235,2049.7,2049.5,7.87919]
[1742399235226,16.960995,2049.7,2049.6,4.879]
[1742399236100,16.810995,2049.7,2049.5,4.87921]
[1742399236721,16.810995,2049.7,2049.4,7.87946]
[1742399237924,21.689755,2049.7,2049.4,7.87946]
[1742399238096,21.689755,2049.7,2049.4,3.0]
[1742399238419,4.87913,2049.6,2049.3,3.0]
[1742399238622,4.87972,2049.3,2048.9,4.88043]
[1742399238820,4.87931,2049.5,2049.1,4.88015]
[1742399239037,5.65942,2049.6,2049.2,4.87994]
[1742399239197,4.87925,2049.5,2049.1,7.88007]
[1742399239396,9.75869,2049.5,2049.1,7.88007]
[1742399239593,3.24423905,2049.6,2048.9,0.8271]
[1742399239792,14.53504645,2049.5,2048.8,7.88082]
[1742399239994,5.198,2049.5,2048.8,3.0]
[1742399240195,5.72390391,2049.4,2048.8,7.8809]
[1742399240409,4.87974,2049.3,2049.0,3.0]
[1742399240656,4.87968,2049.4,2049.0,7.88039]
[1742399240799,4.87968,2049.4,2049.0,7.88026]
[1742399241013,4.87974,2049.3,2049.0,3.0]
[1742399241539,5.68613,2049.1,2048.7,0.7542]
[1742399241854,4.88051,2049.0,2048.6,4.88122]
[1742399242051,5.68602,2049.1,2048.7,4.88102]
[1742399242225,5.68602,2049.1,2048.8,3.0]
[1742399242422,4.88043,2049.0,2048.6,7.88136]
[1742399242611,4.88042,2049.0,2048.4,4.8818]
[1742399242811,16.869,2048.9,2048.6,4.88124]
[1742399243043,16.869,2048.9,2048.7,3.0]
[1742399243226,21.74977,2048.9,2048.7,3.0]
[1742399243427,21.74977,2048.9,2048.6,3.0]
[1742399243834,16.869,2048.9,2048.6,3.0]
[1742399244155,16.869,2048.9,2048.6,7.88123]
[1742399244624,4.88091,2048.8,2048.6,3.0]
[1742399244828,21.74967,2048.9,2048.6,3.0]
[1742399245229,16.869,2048.9,2048.6,7.88127]
[1742399245423,16.869,2048.9,2048.7,4.88091]
[1742399245645,16.869,2048.9,2048.8,4.8809]
[1742399246424,16.869,2048.9,2048.8,7.8809]
[1742399248961,16.869,2048.9,2048.8,7.794905]
[1742399249267,17.6417,2049.5,2049.2,4.87986]
[1742399249641,23.76252232,2049.5,2049.1,4.88018]
[1742399249839,23.76252232,2049.5,2049.0,4.88037]
[1742399249840,23.76254232,2049.5,2049.0,4.88037]
[1742399250069,4.87963,2049.4,2049.0,4.88037]
[1742399250236,18.88328232,2049.5,2049.0,4.88037]
[1742399250434,7.21365488,2049.4,2049.0,4.88037]
[1742399250986,18.88328232,2049.5,2049.1,3.0]
[1742399251149,16.871,2049.5,2049.4,4.87947]
[1742399251753,16.871,2049.5,2049.3,4.87963]
[1742399252155,16.871,2049.5,2049.4,4.87947]
[1742399252359,16.871,2049.5,2049.3,4.87959]
[1742399252583,16.871,2049.5,2049.3,4.87952]
[1742399253448,16.871,2049.5,2049.3,9.75907]
[1742399253949,16.871,2049.5,2049.3,4.87952]
[1742399254158,25.005999,2049.5,2049.2,7.87987]
[1742399254360,20.126759,2049.5,2049.2,3.0]
[1742399254587,20.126759,2049.5,2049.3,4.8797]
[1742399255211,16.871,2049.5,2049.3,4.8797]
[1742399255412,16.871,2049.5,2049.4,4.87947]
[1742399255619,16.871,2049.5,2049.4,7.87947]
[1742399255778,16.871,2049.5,2049.4,8.63287]
[1742399256732,6.49698,2049.5,2049.4,9.18287]
[1742399257017,5.9489,2050.2,2049.9,4.87807]
[1742399257167,0.7959,2050.2,2049.9,4.87807]
[1742399257873,0.7959,2050.2,2049.8,3.0]
[1742399257874,4.87789,2050.1,2049.8,3.0]
[1742399259012,4.87808,2050.0,2049.6,4.87888]
[1742399259198,4.87808,2050.0,2049.7,3.0]
[1742399259398,5.933267,2050.0,2049.7,3.0]
[1742399259822,0.7959,2050.2,2049.6,3.0]
[1742399260002,0.7959,2050.2,2050.0,9.75569]
[1742399260199,0.7959,2050.2,2050.0,4.87781]
[1742399260750,16.87,2050.3,2050.1,4.87781]
[1742399260902,16.87,2050.3,2050.2,7.87757]
[1742399264114,16.87,2050.3,2050.2,3.0]
[1742399264416,16.87,2050.3,2050.2,7.87757]
[1742399264611,16.87,2050.3,2050.2,8.63477]
[1742399265845,0.7863,2050.8,2050.2,10.473814]
[1742399266046,0.7863,2050.8,2050.5,4.87674]
[1742399266516,22.016,2050.9,2050.7,3.0]